[Event "December 5 Early 2023"]
[Site "https://www.chess.com"]
[Date "2023.12.05"]
[Round "2"]
[White "Martinez Alcantara, Jose Eduardo"]
[Black "Zhurbinsky, David"]
[Result "1/2-1/2"]
[Board "20"]
[TimeControl "180+1"]
[WhiteFideId "3805662"]
[BlackFideId "2072904"]
[WhiteElo "2989"]
[BlackElo "2615"]
[WhiteTeam "PER"]
[BlackTeam "USA"]
[WhiteClock "0:00:21"]
[BlackClock "0:00:20"]

1. e4 {[%clk 0:03:00]}  e5 {[%clk 0:02:59]} 2. Nf3 {[%clk 0:02:59]}  Nc6 {[%clk 0:03:00]} 3. Nc3 {[%clk 0:02:59]}  Nf6 {[%clk 0:03:01]} 4. h3 {[%clk 0:03:00]}  Bb4 {[%clk 0:03:01]} 5. a3 {[%clk 0:03:00]}  Bxc3 {[%clk 0:03:01]} 6. dxc3 {[%clk 0:03:01]}  d6 {[%clk 0:03:01]} 7. Bd3 {[%clk 0:03:01]}  h6 {[%clk 0:02:59]} 8. Qe2 {[%clk 0:03:01]}  Be6 {[%clk 0:02:59]} 9. Be3 {[%clk 0:03:01]}  Qd7 {[%clk 0:02:57]} 10. O-O-O {[%clk 0:03:01]}  a6 {[%clk 0:02:55]} 11. Nd2 {[%clk 0:02:59]}  Na5 {[%clk 0:02:49]} 12. f4 {[%clk 0:02:58]}  exf4 {[%clk 0:02:36]} 13. Bxf4 {[%clk 0:02:59]}  Qa4 {[%clk 0:02:28]} 14. Rhf1 {[%clk 0:02:36]}  Nd7 {[%clk 0:02:21]} 15. Kb1 {[%clk 0:02:36]}  Nc5 {[%clk 0:02:17]} 16. Be3 {[%clk 0:02:36]}  Nxd3 {[%clk 0:02:15]} 17. cxd3 {[%clk 0:02:36]}  Nb3 {[%clk 0:02:08]} 18. c4 {[%clk 0:02:33]}  b5 {[%clk 0:02:01]} 19. Nxb3 {[%clk 0:01:11]}  Qxb3 {[%clk 0:02:02]} 20. Rc1 {[%clk 0:01:12]}  bxc4 {[%clk 0:01:47]} 21. dxc4 {[%clk 0:01:13]}  Rb8 {[%clk 0:01:48]} 22. Bd4 {[%clk 0:01:13]}  Qxa3 {[%clk 0:01:37]} 23. Rf3 {[%clk 0:01:13]}  Qa4 {[%clk 0:01:29]} 24. Rg3 {[%clk 0:01:13]}  Rb4 {[%clk 0:01:24]} 25. Rgc3 {[%clk 0:00:54]}  Kd7 {[%clk 0:01:11]} 26. Qc2 {[%clk 0:00:33]}  Qa5 {[%clk 0:01:00]} 27. b3 {[%clk 0:00:21]}  Rhb8 {[%clk 0:00:20]} 28. Kb2 {[%clk 0:00:21]} 1/2-1/2

[Event "December 5 Early 2023"]
[Site "https://www.chess.com"]
[Date "2023.12.05"]
[Round "2"]
[White "Durarbayli, Vasif"]
[Black "Ianovsky, Matias Manuel"]
[Result "1-0"]
[Board "22"]
[TimeControl "180+1"]
[WhiteFideId "13402935"]
[BlackFideId "112470"]
[WhiteElo "2976"]
[BlackElo "2610"]
[WhiteTeam "AZE"]
[BlackTeam "ARG"]
[WhiteClock "0:00:16"]
[BlackClock "0:00:00"]

1. e4 {[%clk 0:03:00]}  c6 {[%clk 0:02:56]} 2. d4 {[%clk 0:02:59]}  d5 {[%clk 0:02:57]} 3. e5 {[%clk 0:03:00]}  c5 {[%clk 0:02:57]} 4. dxc5 {[%clk 0:03:01]}  Nc6 {[%clk 0:02:56]} 5. f4 {[%clk 0:02:58]}  e6 {[%clk 0:02:52]} 6. Be3 {[%clk 0:02:56]}  d4 {[%clk 0:02:47]} 7. Bf2 {[%clk 0:02:56]}  Bxc5 {[%clk 0:02:43]} 8. Nd2 {[%clk 0:02:55]}  Nh6 {[%clk 0:02:43]} 9. Bd3 {[%clk 0:02:44]}  Nf5 {[%clk 0:02:39]} 10. Ne4 {[%clk 0:02:18]}  Bb4+ {[%clk 0:02:23]} 11. c3 {[%clk 0:02:18]}  Be7 {[%clk 0:01:42]} 12. Nf3 {[%clk 0:02:14]}  h5 {[%clk 0:01:37]} 13. O-O {[%clk 0:02:10]}  dxc3 {[%clk 0:01:10]} 14. bxc3 {[%clk 0:02:00]}  h4 {[%clk 0:01:00]} 15. Qe2 {[%clk 0:01:53]}  Qa5 {[%clk 0:00:57]} 16. c4 {[%clk 0:01:50]}  b6 {[%clk 0:00:46]} 17. Rab1 {[%clk 0:01:27]}  Ba6 {[%clk 0:00:46]} 18. Be1 {[%clk 0:01:16]}  Qa3 {[%clk 0:00:32]} 19. Kh1 {[%clk 0:00:57]}  Rd8 {[%clk 0:00:29]} 20. Rb3 {[%clk 0:00:57]}  Qa4 {[%clk 0:00:06]} 21. Nc3 {[%clk 0:00:49]}  Qa5 {[%clk 0:00:06]} 22. Nb5 {[%clk 0:00:38]}  Ng3+ {[%clk 0:00:05]} 23. Bxg3 {[%clk 0:00:27]}  hxg3 {[%clk 0:00:04]} 24. h3 {[%clk 0:00:28]}  Bxb5 {[%clk 0:00:04]} 25. cxb5 {[%clk 0:00:28]}  Nd4 {[%clk 0:00:04]} 26. Nxd4 {[%clk 0:00:28]}  Rxd4 {[%clk 0:00:05]} 27. Qg4 {[%clk 0:00:29]}  Qd2 {[%clk 0:00:04]} 28. Qxg3 {[%clk 0:00:26]}  Bc5 {[%clk 0:00:02]} 29. Qxg7 {[%clk 0:00:20]}  Rf8 {[%clk 0:00:01]} 30. Qg3 {[%clk 0:00:19]}  Rd5 {[%clk 0:00:01]} 31. Be4 {[%clk 0:00:19]}  Rd4 {[%clk 0:00:01]} 32. Qf3 {[%clk 0:00:18]}  Qxa2 {[%clk 0:00:02]} 33. Rd3 {[%clk 0:00:19]}  Rg8 {[%clk 0:00:01]} 34. Bc6+ {[%clk 0:00:19]}  Ke7 {[%clk 0:00:01]} 35. Rxd4 {[%clk 0:00:19]}  Bxd4 {[%clk 0:00:02]} 36. Rd1 {[%clk 0:00:20]}  Bc5 {[%clk 0:00:02]} 37. Rd7+ {[%clk 0:00:19]}  Kf8 {[%clk 0:00:02]} 38. Rd1 {[%clk 0:00:20]}  Qa4 {[%clk 0:00:01]} 39. f5 {[%clk 0:00:19]}  Rg3 {[%clk 0:00:00]} 40. Qh5 {[%clk 0:00:16]} 1-0

[Event "December 5 Early 2023"]
[Site "https://www.chess.com"]
[Date "2023.12.05"]
[Round "2"]
[White "Principe, Gerson"]
[Black "Navara, David"]
[Result "0-1"]
[Board "23"]
[TimeControl "180+1"]
[WhiteFideId "3804550"]
[BlackFideId "309095"]
[WhiteElo "2608"]
[BlackElo "2968"]
[WhiteTeam "PER"]
[BlackTeam "CZE"]
[WhiteClock "0:00:16"]
[BlackClock "0:00:23"]

1. d4 {[%clk 0:03:00]}  d5 {[%clk 0:02:59]} 2. Nf3 {[%clk 0:03:01]}  Nf6 {[%clk 0:02:59]} 3. e3 {[%clk 0:02:58]}  c5 {[%clk 0:02:59]} 4. Be2 {[%clk 0:02:59]}  cxd4 {[%clk 0:02:57]} 5. exd4 {[%clk 0:02:58]}  Nc6 {[%clk 0:02:57]} 6. O-O {[%clk 0:02:58]}  Bg4 {[%clk 0:02:57]} 7. c3 {[%clk 0:02:59]}  e6 {[%clk 0:02:56]} 8. Bg5 {[%clk 0:02:59]}  h6 {[%clk 0:02:51]} 9. Bh4 {[%clk 0:02:55]}  Bd6 {[%clk 0:02:51]} 10. Nbd2 {[%clk 0:02:55]}  Qc7 {[%clk 0:02:46]} 11. Bg3 {[%clk 0:02:52]}  Bxg3 {[%clk 0:02:41]} 12. hxg3 {[%clk 0:02:51]}  O-O {[%clk 0:02:36]} 13. Re1 {[%clk 0:02:49]}  Nd7 {[%clk 0:02:29]} 14. a4 {[%clk 0:02:46]}  Rab8 {[%clk 0:02:27]} 15. Nf1 {[%clk 0:02:34]}  a6 {[%clk 0:02:25]} 16. Qd2 {[%clk 0:02:30]}  Na5 {[%clk 0:02:19]} 17. Qd1 {[%clk 0:02:24]}  Nc4 {[%clk 0:02:16]} 18. Qc2 {[%clk 0:02:19]}  Bf5 {[%clk 0:02:13]} 19. Qc1 {[%clk 0:02:19]}  b5 {[%clk 0:02:11]} 20. axb5 {[%clk 0:02:18]}  axb5 {[%clk 0:02:12]} 21. b3 {[%clk 0:02:16]}  Nd6 {[%clk 0:02:11]} 22. Qd2 {[%clk 0:02:14]}  Ne4 {[%clk 0:02:10]} 23. Qb2 {[%clk 0:02:00]}  Nxc3 {[%clk 0:02:05]} 24. Ne3 {[%clk 0:01:59]}  Bh7 {[%clk 0:02:01]} 25. Rec1 {[%clk 0:01:59]}  b4 {[%clk 0:01:50]} 26. Nd1 {[%clk 0:01:56]}  Nxe2+ {[%clk 0:01:31]} 27. Qxe2 {[%clk 0:01:57]}  Qb7 {[%clk 0:01:31]} 28. Ne3 {[%clk 0:01:45]}  Rfc8 {[%clk 0:01:31]} 29. g4 {[%clk 0:01:42]}  Be4 {[%clk 0:01:07]} 30. Nd2 {[%clk 0:01:33]}  Rc3 {[%clk 0:01:01]} 31. Nxe4 {[%clk 0:01:24]}  dxe4 {[%clk 0:01:01]} 32. Nc4 {[%clk 0:01:23]}  Nf6 {[%clk 0:00:56]} 33. Qd2 {[%clk 0:00:59]}  Nxg4 {[%clk 0:00:47]} 34. Rxc3 {[%clk 0:00:34]}  bxc3 {[%clk 0:00:48]} 35. Qxc3 {[%clk 0:00:35]}  Qxb3 {[%clk 0:00:48]} 36. Qxb3 {[%clk 0:00:35]}  Rxb3 {[%clk 0:00:49]} 37. Nd2 {[%clk 0:00:36]}  Rd3 {[%clk 0:00:46]} 38. Nxe4 {[%clk 0:00:36]}  Rxd4 {[%clk 0:00:47]} 39. Ng3 {[%clk 0:00:34]}  g6 {[%clk 0:00:44]} 40. f3 {[%clk 0:00:34]}  Nf6 {[%clk 0:00:43]} 41. Ra7 {[%clk 0:00:33]}  Kg7 {[%clk 0:00:42]} 42. Ne2 {[%clk 0:00:33]}  Rd7 {[%clk 0:00:42]} 43. Ra6 {[%clk 0:00:32]}  h5 {[%clk 0:00:39]} 44. Nf4 {[%clk 0:00:32]}  Nd5 {[%clk 0:00:36]} 45. Ne2 {[%clk 0:00:31]}  h4 {[%clk 0:00:30]} 46. Kf1 {[%clk 0:00:30]}  Ne3+ {[%clk 0:00:28]} 47. Kf2 {[%clk 0:00:30]}  Nf5 {[%clk 0:00:28]} 48. Ke1 {[%clk 0:00:27]}  Rb7 {[%clk 0:00:27]} 49. Ra3 {[%clk 0:00:23]}  Rb1+ {[%clk 0:00:26]} 50. Kf2 {[%clk 0:00:23]}  Rb2 {[%clk 0:00:27]} 51. Kf1 {[%clk 0:00:23]}  g5 {[%clk 0:00:25]} 52. Ke1 {[%clk 0:00:20]}  Kf6 {[%clk 0:00:24]} 53. Rc3 {[%clk 0:00:19]}  Ra2 {[%clk 0:00:23]} 54. Rb3 {[%clk 0:00:16]}  Rxe2+ {[%clk 0:00:23]} 0-1

[Event "December 5 Early 2023"]
[Site "https://www.chess.com"]
[Date "2023.12.05"]
[Round "2"]
[White "Galchenko, Matvey"]
[Black "Golubev, Mikhail"]
[Result "1-0"]
[Board "24"]
[TimeControl "180+1"]
[WhiteFideId "24175480"]
[BlackFideId "14100983"]
[WhiteElo "2961"]
[BlackElo "2607"]
[WhiteTeam "FID"]
[BlackTeam "UKR"]
[WhiteClock "0:00:25"]
[BlackClock "0:00:00"]

1. e4 {[%clk 0:03:00]}  c5 {[%clk 0:02:59]} 2. Nc3 {[%clk 0:02:57]}  Nc6 {[%clk 0:02:58]} 3. Bb5 {[%clk 0:02:56]}  Nd4 {[%clk 0:02:58]} 4. Nf3 {[%clk 0:02:56]}  e6 {[%clk 0:02:55]} 5. Bd3 {[%clk 0:02:56]}  Nxf3+ {[%clk 0:02:50]} 6. Qxf3 {[%clk 0:02:57]}  g6 {[%clk 0:02:50]} 7. O-O {[%clk 0:02:44]}  Bg7 {[%clk 0:02:50]} 8. Rb1 {[%clk 0:02:41]}  Ne7 {[%clk 0:02:45]} 9. b4 {[%clk 0:02:41]}  cxb4 {[%clk 0:02:45]} 10. Rxb4 {[%clk 0:02:42]}  Nc6 {[%clk 0:02:44]} 11. Rb1 {[%clk 0:02:42]}  O-O {[%clk 0:02:42]} 12. Qd1 {[%clk 0:02:33]}  d5 {[%clk 0:02:42]} 13. exd5 {[%clk 0:02:34]}  exd5 {[%clk 0:02:43]} 14. Ba3 {[%clk 0:02:31]}  Re8 {[%clk 0:02:42]} 15. Re1 {[%clk 0:02:32]}  Rxe1+ {[%clk 0:02:37]} 16. Qxe1 {[%clk 0:02:33]}  Ne5 {[%clk 0:02:37]} 17. Be2 {[%clk 0:02:22]}  Bf5 {[%clk 0:02:27]} 18. Rxb7 {[%clk 0:01:59]}  d4 {[%clk 0:02:13]} 19. Nb5 {[%clk 0:01:44]}  Bxc2 {[%clk 0:02:10]} 20. Bf1 {[%clk 0:01:09]}  Qd5 {[%clk 0:01:18]} 21. Re7 {[%clk 0:00:57]}  Qxa2 {[%clk 0:00:47]} 22. Rxe5 {[%clk 0:00:54]}  Bxe5 {[%clk 0:00:35]} 23. Qxe5 {[%clk 0:00:55]}  Ba4 {[%clk 0:00:12]} 24. Nc7 {[%clk 0:00:40]}  Rd8 {[%clk 0:00:07]} 25. Be7 {[%clk 0:00:30]}  Rc8 {[%clk 0:00:00]} 26. Bc5 {[%clk 0:00:25]} 1-0

[Event "December 5 Early 2023"]
[Site "https://www.chess.com"]
[Date "2023.12.05"]
[Round "2"]
[White "Toman, Ondrej"]
[Black "Shimanov, Aleksandr"]
[Result "0-1"]
[Board "27"]
[TimeControl "180+1"]
[WhiteFideId "344516"]
[BlackFideId "4198603"]
[WhiteElo "2606"]
[BlackElo "2956"]
[WhiteTeam "CZE"]
[BlackTeam "RUS"]
[WhiteClock "0:00:00"]
[BlackClock "0:00:09"]

1. d4 {[%clk 0:03:00]}  Nf6 {[%clk 0:02:55]} 2. Bg5 {[%clk 0:03:00]}  Ne4 {[%clk 0:02:41]} 3. h4 {[%clk 0:02:59]}  c5 {[%clk 0:02:39]} 4. d5 {[%clk 0:02:58]}  Qb6 {[%clk 0:02:37]} 5. Nd2 {[%clk 0:02:50]}  Nxg5 {[%clk 0:02:29]} 6. hxg5 {[%clk 0:02:50]}  g6 {[%clk 0:02:29]} 7. Rb1 {[%clk 0:02:37]}  Bg7 {[%clk 0:02:27]} 8. c3 {[%clk 0:02:34]}  d6 {[%clk 0:02:26]} 9. e4 {[%clk 0:02:34]}  Nd7 {[%clk 0:02:19]} 10. f4 {[%clk 0:02:30]}  Qc7 {[%clk 0:01:54]} 11. Ngf3 {[%clk 0:02:28]}  Nb6 {[%clk 0:01:50]} 12. c4 {[%clk 0:02:16]}  e6 {[%clk 0:01:45]} 13. Bd3 {[%clk 0:02:13]}  O-O {[%clk 0:01:43]} 14. Kf1 {[%clk 0:01:49]}  exd5 {[%clk 0:01:35]} 15. cxd5 {[%clk 0:01:45]}  f5 {[%clk 0:01:27]} 16. gxf6 {[%clk 0:01:36]}  Bxf6 {[%clk 0:01:26]} 17. g3 {[%clk 0:01:31]}  Bg4 {[%clk 0:01:25]} 18. Kg2 {[%clk 0:01:31]}  Rae8 {[%clk 0:01:26]} 19. Qg1 {[%clk 0:01:22]}  Qg7 {[%clk 0:01:22]} 20. Qh2 {[%clk 0:01:20]}  h5 {[%clk 0:01:17]} 21. b3 {[%clk 0:01:10]}  g5 {[%clk 0:01:03]} 22. Rhg1 {[%clk 0:00:58]}  Kh8 {[%clk 0:00:52]} 23. Kh1 {[%clk 0:00:51]}  Nxd5 {[%clk 0:00:27]} 24. exd5 {[%clk 0:00:48]}  Re3 {[%clk 0:00:28]} 25. Bc2 {[%clk 0:00:41]}  Rxf3 {[%clk 0:00:26]} 26. Bd1 {[%clk 0:00:39]}  Rd3 {[%clk 0:00:07]} 27. Bxg4 {[%clk 0:00:35]}  h4 {[%clk 0:00:08]} 28. Bf5 {[%clk 0:00:30]}  Rxd5 {[%clk 0:00:08]} 29. Be4 {[%clk 0:00:29]}  Rd4 {[%clk 0:00:08]} 30. gxh4 {[%clk 0:00:28]}  g4 {[%clk 0:00:09]} 31. Bf5 {[%clk 0:00:25]}  g3 {[%clk 0:00:07]} 32. Rxg3 {[%clk 0:00:24]}  Rxd2 {[%clk 0:00:07]} 33. Qh3 {[%clk 0:00:20]}  Qh6 {[%clk 0:00:06]} 34. Rg4 {[%clk 0:00:14]}  Rf2 {[%clk 0:00:05]} 35. Rbg1 {[%clk 0:00:13]}  Rxf4 {[%clk 0:00:05]} 36. Rxf4 {[%clk 0:00:11]}  Qxf4 {[%clk 0:00:04]} 37. Rg4 {[%clk 0:00:09]}  Qc1+ {[%clk 0:00:03]} 38. Rg1 {[%clk 0:00:08]}  Qf4 {[%clk 0:00:03]} 39. Rg4 {[%clk 0:00:08]}  Qf2 {[%clk 0:00:03]} 40. Qd3 {[%clk 0:00:04]}  Bd4 {[%clk 0:00:03]} 41. Rg5 {[%clk 0:00:03]}  Qxh4+ {[%clk 0:00:02]} 42. Qh3 {[%clk 0:00:03]}  Qxh3+ {[%clk 0:00:02]} 43. Bxh3 {[%clk 0:00:04]}  Rg8 {[%clk 0:00:02]} 44. Rxg8+ {[%clk 0:00:04]}  Kxg8 {[%clk 0:00:03]} 45. Kg2 {[%clk 0:00:05]}  Kf7 {[%clk 0:00:03]} 46. Kf3 {[%clk 0:00:05]}  d5 {[%clk 0:00:03]} 47. Bc8 {[%clk 0:00:05]}  b6 {[%clk 0:00:03]} 48. Kf4 {[%clk 0:00:05]}  Ke7 {[%clk 0:00:04]} 49. Kf3 {[%clk 0:00:05]}  Kd6 {[%clk 0:00:05]} 50. Ke2 {[%clk 0:00:05]}  b5 {[%clk 0:00:05]} 51. Kd3 {[%clk 0:00:05]}  Be5 {[%clk 0:00:05]} 52. Ba6 {[%clk 0:00:05]}  c4+ {[%clk 0:00:06]} 53. bxc4 {[%clk 0:00:04]}  bxc4+ {[%clk 0:00:07]} 54. Kc2 {[%clk 0:00:03]}  Kc5 {[%clk 0:00:07]} 55. Bc8 {[%clk 0:00:03]}  d4 {[%clk 0:00:08]} 56. Bf5 {[%clk 0:00:04]}  d3+ {[%clk 0:00:08]} 57. Kd2 {[%clk 0:00:03]}  Kd4 {[%clk 0:00:08]} 58. Bg4 {[%clk 0:00:03]}  c3+ {[%clk 0:00:09]} 59. Kc1 {[%clk 0:00:00]}  c2 {[%clk 0:00:09]} 0-1

[Event "December 5 Early 2023"]
[Site "https://www.chess.com"]
[Date "2023.12.05"]
[Round "2"]
[White "Goldin, Alexander"]
[Black "Grigoriants, Sergey"]
[Result "0-1"]
[Board "31"]
[TimeControl "180+1"]
[WhiteFideId "2019540"]
[BlackFideId "4130804"]
[WhiteElo "2602"]
[BlackElo "2940"]
[WhiteTeam "USA"]
[BlackTeam "HUN"]
[WhiteClock "0:00:05"]
[BlackClock "0:00:06"]

1. d4 {[%clk 0:02:53]}  Nf6 {[%clk 0:02:59]} 2. c4 {[%clk 0:02:53]}  g6 {[%clk 0:02:59]} 3. g3 {[%clk 0:02:53]}  c5 {[%clk 0:02:58]} 4. Nf3 {[%clk 0:02:50]}  Qa5+ {[%clk 0:02:51]} 5. Nc3 {[%clk 0:02:48]}  Ne4 {[%clk 0:02:51]} 6. Bd2 {[%clk 0:02:48]}  Nxd2 {[%clk 0:02:50]} 7. Qxd2 {[%clk 0:02:48]}  Bg7 {[%clk 0:02:49]} 8. Bg2 {[%clk 0:02:48]}  cxd4 {[%clk 0:02:49]} 9. Nxd4 {[%clk 0:02:48]}  Nc6 {[%clk 0:02:50]} 10. e3 {[%clk 0:02:46]}  Qc5 {[%clk 0:02:44]} 11. Ndb5 {[%clk 0:01:13]}  O-O {[%clk 0:02:37]} 12. Rc1 {[%clk 0:00:51]}  a6 {[%clk 0:02:16]} 13. Na3 {[%clk 0:00:45]}  Qh5 {[%clk 0:02:03]} 14. O-O {[%clk 0:00:43]}  d6 {[%clk 0:02:03]} 15. Nd5 {[%clk 0:00:43]}  Bg4 {[%clk 0:01:39]} 16. b4 {[%clk 0:00:37]}  Kh8 {[%clk 0:00:59]} 17. h3 {[%clk 0:00:37]}  Bd7 {[%clk 0:00:57]} 18. Nb6 {[%clk 0:00:34]}  Rad8 {[%clk 0:00:56]} 19. g4 {[%clk 0:00:33]}  Qh4 {[%clk 0:00:53]} 20. f4 {[%clk 0:00:31]}  f5 {[%clk 0:00:38]} 21. g5 {[%clk 0:00:31]}  h6 {[%clk 0:00:37]} 22. gxh6 {[%clk 0:00:28]}  Qxh6 {[%clk 0:00:37]} 23. Nc2 {[%clk 0:00:26]}  Be6 {[%clk 0:00:33]} 24. Nd5 {[%clk 0:00:23]}  Rf7 {[%clk 0:00:14]} 25. b5 {[%clk 0:00:23]}  Nb8 {[%clk 0:00:13]} 26. Nd4 {[%clk 0:00:22]}  Bc8 {[%clk 0:00:11]} 27. Nb6 {[%clk 0:00:22]}  e5 {[%clk 0:00:07]} 28. Nf3 {[%clk 0:00:20]}  e4 {[%clk 0:00:07]} 29. Ng5 {[%clk 0:00:20]}  Rff8 {[%clk 0:00:05]} 30. Qd5 {[%clk 0:00:20]}  Nd7 {[%clk 0:00:02]} 31. Nxc8 {[%clk 0:00:19]}  Rxc8 {[%clk 0:00:02]} 32. Nf7+ {[%clk 0:00:19]}  Rxf7 {[%clk 0:00:03]} 33. Qxf7 {[%clk 0:00:20]}  Nc5 {[%clk 0:00:04]} 34. Qd5 {[%clk 0:00:19]}  Rd8 {[%clk 0:00:03]} 35. bxa6 {[%clk 0:00:18]}  bxa6 {[%clk 0:00:04]} 36. Rb1 {[%clk 0:00:18]}  Bf6 {[%clk 0:00:04]} 37. Rfd1 {[%clk 0:00:17]}  Qh4 {[%clk 0:00:05]} 38. Qc6 {[%clk 0:00:17]}  Qg3 {[%clk 0:00:05]} 39. Kh1 {[%clk 0:00:16]}  Qxe3 {[%clk 0:00:05]} 40. Rxd6 {[%clk 0:00:17]}  Rxd6 {[%clk 0:00:04]} 41. Qxd6 {[%clk 0:00:17]}  Bg7 {[%clk 0:00:04]} 42. Rb8+ {[%clk 0:00:15]}  Kh7 {[%clk 0:00:05]} 43. Qd1 {[%clk 0:00:13]}  Nd3 {[%clk 0:00:05]} 44. Rb7 {[%clk 0:00:13]}  Qxf4 {[%clk 0:00:05]} 45. Qe2 {[%clk 0:00:12]}  Kh6 {[%clk 0:00:05]} 46. Rb1 {[%clk 0:00:10]}  Be5 {[%clk 0:00:05]} 47. Kg1 {[%clk 0:00:09]}  Bd4+ {[%clk 0:00:05]} 48. Kh1 {[%clk 0:00:09]}  Be5 {[%clk 0:00:06]} 49. Kg1 {[%clk 0:00:09]}  Qh2+ {[%clk 0:00:06]} 50. Kf1 {[%clk 0:00:09]}  Bd4 {[%clk 0:00:07]} 51. Bxe4 {[%clk 0:00:05]}  Qg1# {[%clk 0:00:06]} 0-1

[Event "December 5 Early 2023"]
[Site "https://www.chess.com"]
[Date "2023.12.05"]
[Round "2"]
[White "Svane, Rasmus"]
[Black "Roebers, Eline"]
[Result "1-0"]
[Board "32"]
[TimeControl "180+1"]
[WhiteFideId "4657101"]
[BlackFideId "1058401"]
[WhiteElo "2931"]
[BlackElo "2601"]
[WhiteTeam "GER"]
[BlackTeam "NED"]
[WhiteClock "0:01:13"]
[BlackClock "0:01:07"]

1. Nf3 {[%clk 0:02:59]}  f5 {[%clk 0:02:59]} 2. d3 {[%clk 0:02:57]}  Nf6 {[%clk 0:02:57]} 3. e4 {[%clk 0:02:56]}  d6 {[%clk 0:02:56]} 4. Nc3 {[%clk 0:02:54]}  e5 {[%clk 0:02:54]} 5. exf5 {[%clk 0:02:52]}  Bxf5 {[%clk 0:02:55]} 6. d4 {[%clk 0:02:51]}  e4 {[%clk 0:02:54]} 7. Nh4 {[%clk 0:02:51]}  Bg4 {[%clk 0:02:52]} 8. Be2 {[%clk 0:02:42]}  Bxe2 {[%clk 0:02:44]} 9. Qxe2 {[%clk 0:02:43]}  d5 {[%clk 0:02:29]} 10. Bg5 {[%clk 0:02:28]}  c6 {[%clk 0:02:16]} 11. f3 {[%clk 0:02:18]}  Be7 {[%clk 0:02:00]} 12. fxe4 {[%clk 0:02:04]}  dxe4 {[%clk 0:01:58]} 13. Nf5 {[%clk 0:02:00]}  O-O {[%clk 0:01:56]} 14. O-O-O {[%clk 0:01:50]}  Nbd7 {[%clk 0:01:28]} 15. Nxe4 {[%clk 0:01:42]}  Re8 {[%clk 0:01:24]} 16. Qc4+ {[%clk 0:01:23]}  Kh8 {[%clk 0:01:18]} 17. Ned6 {[%clk 0:01:18]}  Bxd6 {[%clk 0:01:15]} 18. Nxd6 {[%clk 0:01:19]}  Rf8 {[%clk 0:01:09]} 19. Nf7+ {[%clk 0:01:18]}  Rxf7 {[%clk 0:01:09]} 20. Qxf7 {[%clk 0:01:19]}  Qa5 {[%clk 0:01:09]} 21. Bxf6 {[%clk 0:01:16]}  Nxf6 {[%clk 0:01:07]} 22. Rhe1 {[%clk 0:01:13]} 1-0

[Event "December 5 Early 2023"]
[Site "https://www.chess.com"]
[Date "2023.12.05"]
[Round "2"]
[White "Kim, Sergey"]
[Black "Rasulov, Vugar"]
[Result "0-1"]
[Board "34"]
[TimeControl "180+1"]
[WhiteFideId "13700570"]
[BlackFideId "13402390"]
[WhiteElo "2600"]
[BlackElo "2918"]
[WhiteTeam "KAZ"]
[BlackTeam "AZE"]
[WhiteClock "0:00:26"]
[BlackClock "0:00:55"]

1. d4 {[%clk 0:03:00]}  Nf6 {[%clk 0:02:59]} 2. c4 {[%clk 0:03:01]}  g6 {[%clk 0:03:00]} 3. Nc3 {[%clk 0:03:01]}  d5 {[%clk 0:03:00]} 4. cxd5 {[%clk 0:03:00]}  Nxd5 {[%clk 0:03:01]} 5. e4 {[%clk 0:03:00]}  Nxc3 {[%clk 0:03:01]} 6. bxc3 {[%clk 0:03:01]}  Bg7 {[%clk 0:03:02]} 7. Bc4 {[%clk 0:03:01]}  c5 {[%clk 0:03:02]} 8. Ne2 {[%clk 0:03:01]}  Nc6 {[%clk 0:03:01]} 9. Be3 {[%clk 0:03:01]}  cxd4 {[%clk 0:03:01]} 10. cxd4 {[%clk 0:03:00]}  b5 {[%clk 0:03:01]} 11. Bb3 {[%clk 0:02:58]}  Bb7 {[%clk 0:02:58]} 12. O-O {[%clk 0:02:58]}  O-O {[%clk 0:02:58]} 13. Qd2 {[%clk 0:02:58]}  Na5 {[%clk 0:02:56]} 14. Ng3 {[%clk 0:02:57]}  Rc8 {[%clk 0:02:53]} 15. Rad1 {[%clk 0:02:53]}  Nc4 {[%clk 0:02:53]} 16. Bxc4 {[%clk 0:02:53]}  Rxc4 {[%clk 0:02:54]} 17. d5 {[%clk 0:02:46]}  Re8 {[%clk 0:02:51]} 18. Bxa7 {[%clk 0:02:42]}  Qa8 {[%clk 0:02:46]} 19. Be3 {[%clk 0:02:41]}  Ra4 {[%clk 0:02:46]} 20. Bh6 {[%clk 0:02:37]}  Rxa2 {[%clk 0:02:45]} 21. Qg5 {[%clk 0:02:37]}  Bf6 {[%clk 0:02:44]} 22. Qg4 {[%clk 0:02:34]}  Bc8 {[%clk 0:02:41]} 23. Qf4 {[%clk 0:02:28]}  b4 {[%clk 0:02:41]} 24. e5 {[%clk 0:02:26]}  Bh8 {[%clk 0:02:39]} 25. d6 {[%clk 0:02:11]}  Bb7 {[%clk 0:02:26]} 26. d7 {[%clk 0:01:57]}  Rd8 {[%clk 0:02:25]} 27. f3 {[%clk 0:01:51]}  Qa5 {[%clk 0:02:19]} 28. Rfe1 {[%clk 0:01:48]}  b3 {[%clk 0:02:09]} 29. Nf5 {[%clk 0:01:40]}  Qc5+ {[%clk 0:02:09]} 30. Kh1 {[%clk 0:01:40]}  Ra6 {[%clk 0:01:36]} 31. Qg5 {[%clk 0:01:29]}  Re6 {[%clk 0:01:34]} 32. Nd6 {[%clk 0:01:15]}  Rxd7 {[%clk 0:01:16]} 33. Nxb7 {[%clk 0:01:14]}  Qxe5 {[%clk 0:01:17]} 34. Qxe5 {[%clk 0:01:09]}  Rxe5 {[%clk 0:01:17]} 35. Rf1 {[%clk 0:01:06]}  Red5 {[%clk 0:01:14]} 36. Rb1 {[%clk 0:00:50]}  Rxb7 {[%clk 0:01:12]} 37. h4 {[%clk 0:00:47]}  f5 {[%clk 0:01:12]} 38. h5 {[%clk 0:00:45]}  Bf6 {[%clk 0:01:11]} 39. g4 {[%clk 0:00:44]}  b2 {[%clk 0:01:10]} 40. Kg2 {[%clk 0:00:40]}  Rc5 {[%clk 0:01:09]} 41. Kg3 {[%clk 0:00:39]}  Be5+ {[%clk 0:01:08]} 42. Bf4 {[%clk 0:00:39]}  Bxf4+ {[%clk 0:01:07]} 43. Kxf4 {[%clk 0:00:40]}  Rc4+ {[%clk 0:01:05]} 44. Kg5 {[%clk 0:00:38]}  fxg4 {[%clk 0:01:03]} 45. fxg4 {[%clk 0:00:38]}  Rb5+ {[%clk 0:01:02]} 46. Kh6 {[%clk 0:00:29]}  Rxg4 {[%clk 0:01:01]} 47. Rh1 {[%clk 0:00:28]}  gxh5 {[%clk 0:00:55]} 48. Rxh5 {[%clk 0:00:26]}  Rg6# {[%clk 0:00:55]} 0-1